bitfinex-derivatives/quotes_BTCF0:USTF0_20250510
["timestamp","ask_amount","ask_price","bid_price","bid_amount"]
[1746863434276,0.44067242,103720.0,103710.0,0.69454057]
[1746863434773,0.37055016,103720.0,103710.0,0.69454057]
[1746863435069,0.37055016,103720.0,103710.0,0.86054057]
[1746863436271,0.37055016,103720.0,103710.0,0.69454057]
[1746863437277,0.44067242,103720.0,103710.0,0.69454057]
[1746863441070,0.44067242,103720.0,103710.0,0.71794057]
[1746863441269,0.44067242,103720.0,103710.0,0.59894057]
[1746863443277,0.44067242,103720.0,103710.0,0.11854057]
[1746863443278,0.80147242,103720.0,103710.0,0.11854057]
[1746863443480,0.89789242,103720.0,103710.0,0.0221411]
[1746863444683,0.80147242,103720.0,103710.0,0.0221411]
[1746863447986,0.81112228,103720.0,103710.0,0.0221411]
[1746863459191,0.1928164,103710.0,103700.0,0.1]
[1746863459489,0.35343866,103710.0,103700.0,0.19641806]
[1746863460588,0.35443866,103710.0,103700.0,0.20041806]
[1746863461290,0.42456092,103710.0,103700.0,0.21523088]
[1746863463181,0.42556092,103710.0,103700.0,0.21723088]
[1746863463693,0.43279092,103710.0,103700.0,0.21723088]
[1746863464093,0.72346866,103710.0,103700.0,0.21723088]
[1746863464394,0.79359092,103710.0,103700.0,0.24893088]
[1746863464690,0.43279092,103710.0,103700.0,0.24893088]
[1746863464891,0.36266866,103710.0,103700.0,0.24893088]
[1746863465493,0.79359092,103710.0,103700.0,0.24893088]
[1746863467296,0.72346866,103710.0,103700.0,0.24893088]
[1746863467496,0.36266866,103710.0,103700.0,0.24893088]
[1746863467699,0.36266866,103710.0,103700.0,0.30973088]
[1746863469203,0.79359092,103710.0,103700.0,0.0505297]
[1746863469809,0.79359092,103710.0,103700.0,0.0208523]
[1746863470009,0.72346866,103710.0,103700.0,0.0208523]
[1746863470308,0.36266866,103710.0,103700.0,0.06815388]
[1746863470510,0.36266866,103710.0,103700.0,0.12965388]
[1746863471206,0.36266866,103710.0,103700.0,0.29565388]
[1746863472113,0.36266866,103710.0,103700.0,0.12965388]
[1746863473114,0.36266866,103710.0,103700.0,0.29565388]
[1746863482923,0.36266866,103710.0,103700.0,0.2810523]
[1746863484822,0.36366866,103710.0,103700.0,0.2750523]
[1746863494322,0.36366866,103710.0,103700.0,0.6358523]
[1746863502836,0.04043,103710.0,103700.0,1.54487918]
[1746863503020,0.01023,103710.0,103700.0,1.74130718]
[1746863503224,0.01023,103710.0,103700.0,2.00637781]
[1746863503534,0.01023,103710.0,103700.0,1.68625555]
[1746863503928,0.2030464,103710.0,103700.0,1.74130718]
[1746863504129,0.2030464,103710.0,103700.0,1.68625477]
[1746863504432,0.2030464,103710.0,103700.0,1.75637703]
[1746863504734,0.2020464,103710.0,103700.0,1.6962547]
[1746863506629,0.2020464,103710.0,103700.0,1.5998267]
[1746863508431,0.2020464,103710.0,103700.0,1.58475692]
[1746863508637,0.2020464,103710.0,103700.0,1.5998267]
[1746863512138,0.2020464,103710.0,103700.0,1.59982664]
[1746863512341,0.2020464,103710.0,103700.0,1.6699489]
[1746863512730,0.2020464,103710.0,103700.0,1.59982664]
[1746863514038,0.2020464,103710.0,103700.0,0.87822664]
[1746863514231,0.2020464,103710.0,103700.0,1.59982664]
[1746863515339,0.2020464,103710.0,103700.0,1.6699489]
[1746863515638,0.2020464,103710.0,103700.0,1.59982664]
[1746863515840,0.2323464,103710.0,103700.0,1.59982664]
[1746863517244,0.2323464,103710.0,103700.0,1.6699489]
[1746863517546,0.2323464,103710.0,103700.0,1.66994891]
[1746863518342,0.03953,103710.0,103700.0,1.66994891]
[1746863518537,0.2323464,103710.0,103700.0,1.59982665]
[1746863523647,0.03953,103710.0,103700.0,1.59982665]
[1746863523845,0.03953,103710.0,103700.0,1.66994891]
[1746863524344,0.03953,103710.0,103700.0,1.66994845]
[1746863525249,0.03953,103710.0,103700.0,1.59982619]
[1746863525949,0.03953,103710.0,103700.0,2.75430619]
[1746863528751,0.2323464,103710.0,103700.0,2.68418393]
[1746863528951,0.2650464,103710.0,103700.0,2.75430619]
[1746863530647,0.2650464,103710.0,103700.0,2.68418393]
[1746863530849,0.2650464,103710.0,103700.0,2.75430619]
[1746863532350,0.2951464,103710.0,103700.0,2.75430619]
[1746863533852,0.2951464,103710.0,103700.0,2.03270619]
[1746863534150,0.2951464,103710.0,103700.0,2.75430619]
[1746863536556,0.2951464,103710.0,103700.0,2.77430619]
[1746863536854,0.2951464,103710.0,103700.0,2.77430623]
[1746863537853,0.2951464,103710.0,103700.0,2.05270623]
[1746863538155,0.2951464,103710.0,103700.0,2.77430623]
[1746863538755,0.2951464,103710.0,103700.0,2.77430624]
[1746863540456,0.2951464,103710.0,103700.0,2.77430622]
[1746863541956,0.2951464,103710.0,103700.0,2.05270622]
[1746863542254,0.2951464,103710.0,103700.0,2.77430622]
[1746863544557,0.10233,103710.0,103700.0,2.77430622]
[1746863545455,0.10233,103710.0,103700.0,2.05270622]
[1746863545654,0.10233,103710.0,103700.0,2.77430622]
[1746863546945,0.07223,103710.0,103700.0,2.84442848]
[1746863547757,0.07223,103710.0,103700.0,2.77430622]
[1746863548061,0.07223,103710.0,103700.0,2.84442848]
[1746863548450,0.07223,103710.0,103700.0,2.77430622]
[1746863549259,0.07223,103710.0,103700.0,2.77430618]
[1746863550955,0.07223,103710.0,103700.0,2.84442844]
[1746863551658,0.07223,103710.0,103700.0,2.77430618]
[1746863557451,0.2965464,103710.0,103700.0,2.77430618]
[1746863558567,0.10373,103710.0,103700.0,2.77430618]
[1746863560367,0.10373,103710.0,103700.0,2.77430615]
[1746863564371,0.10373,103710.0,103700.0,4.34442841]
[1746863564879,0.10373,103710.0,103700.0,4.27430615]
[1746863576795,0.2965464,103710.0,103700.0,4.27430615]
[1746863577094,0.10373,103710.0,103700.0,4.27430615]
[1746863578297,0.10373,103710.0,103700.0,4.20418389]
[1746863578594,0.10373,103710.0,103700.0,4.27430615]
[1746863578996,0.2965464,103710.0,103700.0,4.27430615]
[1746863579595,0.10373,103710.0,103700.0,4.27430615]
[1746863580291,0.10373,103710.0,103700.0,3.55270615]
[1746863580492,0.10373,103710.0,103700.0,4.27430615]
[1746863581397,0.10373,103710.0,103700.0,4.27430614]
[1746863582994,0.10373,103710.0,103700.0,3.55270614]
[1746863583293,0.10373,103710.0,103700.0,4.27430614]
[1746863585000,0.10373,103710.0,103700.0,4.27430615]
[1746863585299,0.10373,103710.0,103700.0,4.34442841]
[1746863588600,0.10373,103710.0,103700.0,4.27430615]
[1746863589201,0.10373,103710.0,103700.0,4.34442841]
[1746863589603,0.07223,103710.0,103700.0,4.34442841]
[1746863589903,0.07223,103710.0,103700.0,4.27430615]
[1746863590098,0.07223,103710.0,103700.0,3.55270615]
[1746863590299,0.07223,103710.0,103700.0,4.27430615]
[1746863593805,0.07223,103710.0,103700.0,4.20418386]
[1746863594103,0.07223,103710.0,103700.0,4.27430612]
[1746863594300,0.07223,103710.0,103700.0,4.34442838]
[1746863594490,0.03953,103710.0,103700.0,4.34442838]
[1746863594806,0.2891593,103740.0,103730.0,0.1927793]
[1746863595104,0.2891593,103740.0,103730.0,0.9710485]
[1746863595294,0.35928156,103740.0,103730.0,0.9710485]
[1746863595491,0.35928156,103740.0,103730.0,1.06747586]
[1746863595807,0.35928156,103740.0,103730.0,1.06747382]
[1746863596099,0.36028156,103740.0,103730.0,1.07718111]
[1746863596304,0.3537593,103740.0,103730.0,0.91118111]
[1746863596604,0.42388156,103740.0,103730.0,0.91318111]
[1746863598308,0.45698156,103740.0,103730.0,0.91318111]
[1746863598807,0.45698156,103740.0,103730.0,0.91318116]
[1746863599403,0.45698156,103740.0,103730.0,0.91318117]
[1746863599808,0.3868593,103740.0,103730.0,0.91318117]
[1746863600106,0.45698156,103740.0,103730.0,0.91318117]
[1746863603612,0.3868593,103740.0,103730.0,0.91318117]
[1746863603808,0.45698156,103740.0,103730.0,0.91318117]
[1746863605110,0.3868593,103740.0,103730.0,0.91318117]
[1746863605300,0.45698156,103740.0,103730.0,0.91318117]
[1746863609203,0.45698156,103740.0,103730.0,0.91318119]
[1746863610110,0.45698156,103740.0,103730.0,1.07918119]
[1746863611011,0.45698156,103740.0,103730.0,1.0694739]
[1746863611212,0.45698156,103740.0,103730.0,0.9034739]
[1746863611815,0.3868593,103740.0,103730.0,0.9034739]
[1746863612115,0.3868593,103740.0,103730.0,1.1021739]
[1746863612314,0.3868593,103740.0,103730.0,1.11193773]
[1746863614115,0.45698156,103740.0,103730.0,1.11193772]
[1746863615116,0.45698156,103740.0,103730.0,0.94593772]
[1746863617211,0.45698156,103740.0,103730.0,1.11193772]
[1746863618118,0.45698156,103740.0,103730.0,0.94593772]
[1746863621116,0.45698156,103740.0,103730.0,0.93087049]
[1746863621326,0.45698156,103740.0,103730.0,0.94593772]
[1746863622823,0.3386647,103740.0,103730.0,1.01605998]
[1746863623118,0.2594724,103740.0,103730.0,1.31415998]
[1746863623321,0.2594607,103740.0,103730.0,1.34655998]
[1746863623524,0.2594607,103740.0,103730.0,1.27643772]
[1746863623719,0.0341,103740.0,103730.0,1.27643772]
[1746863623922,0.001,103740.0,103730.0,1.41668095]
[1746863624618,0.0481742,103780.0,103730.0,1.41668095]
[1746863624619,0.171251,103790.0,103780.0,0.1926864]
[1746863624827,0.171251,103790.0,103780.0,0.99184876]
[1746863625025,0.171251,103790.0,103780.0,1.12514876]
[1746863625213,0.3639188,103790.0,103780.0,1.29114498]
[1746863625519,0.3639188,103790.0,103780.0,1.09485805]
[1746863625919,0.1926678,103790.0,103780.0,1.09485805]
[1746863626424,0.1946678,103790.0,103780.0,1.10185934]
[1746863626627,0.1946678,103790.0,103780.0,1.06995934]
[1746863626825,0.1946678,103790.0,103780.0,1.05489947]
[1746863627018,0.1946678,103790.0,103780.0,1.04339947]
[1746863627231,0.1946678,103790.0,103780.0,0.87739947]
[1746863627422,0.29101981,103790.0,103780.0,0.46419947]
[1746863627722,0.29001981,103790.0,103780.0,0.10039947]
[1746863627925,0.65181981,103790.0,103780.0,0.09489947]
[1746863628222,0.70701981,103790.0,103780.0,0.01]
[1746863628426,0.1926864,103780.0,103770.0,0.24187485]
[1746863628719,0.2257864,103780.0,103770.0,0.24187485]
[1746863628927,0.740264,103780.0,103770.0,0.24187485]
[1746863629120,1.0989504,103780.0,103770.0,0.24187485]
[1746863629319,1.31303804,103780.0,103770.0,0.24187485]
[1746863629524,0.192705,103770.0,103760.0,0.28966524]
[1746863629721,0.83149264,103770.0,103760.0,0.28966524]
[1746863629925,0.83149264,103770.0,103750.0,0.68266524]
[1746863629926,0.1927235,103760.0,103750.0,0.68266524]
[1746863630224,0.39676732,103760.0,103750.0,0.68266524]
[1746863630417,0.39676732,103760.0,103750.0,0.77903684]
[1746863630817,0.96099114,103760.0,103750.0,0.15591693]
[1746863631023,0.7469035,103760.0,103750.0,0.05954533]
[1746863631325,0.8165235,103760.0,103750.0,0.25228743]
[1746863631511,0.92356732,103760.0,103750.0,0.25228743]
[1746863631715,0.8175235,103760.0,103750.0,0.67159213]
[1746863632116,0.53274382,103760.0,103750.0,0.86909213]
[1746863632321,0.3608,103760.0,103750.0,1.06434207]
[1746863632519,0.3608,103760.0,103750.0,0.99444207]
[1746863632826,0.3608,103760.0,103750.0,1.10148479]
[1746863633023,0.3608,103760.0,103750.0,0.99444097]
[1746863633325,0.3608,103760.0,103750.0,1.10748497]
[1746863633326,0.3618,103760.0,103750.0,1.10748497]
[1746863633515,0.3618,103760.0,103750.0,1.00044115]
[1746863633920,0.5545235,103760.0,103750.0,1.00044115]
[1746863634318,0.5545235,103760.0,103750.0,1.10748497]
[1746863634622,0.3618,103760.0,103750.0,1.10748497]
[1746863634825,0.3618,103760.0,103750.0,1.20748497]
[1746863635031,0.5545235,103760.0,103750.0,1.10748497]
[1746863635214,0.5545235,103760.0,103750.0,1.00044115]
[1746863635417,0.5877235,103760.0,103750.0,1.10748497]
[1746863636013,0.5545235,103760.0,103750.0,1.10748497]
[1746863636325,0.001,103760.0,103750.0,1.46124115]
[1746863636513,0.001,103760.0,103750.0,1.46828497]
[1746863637026,0.36802,103790.0,103750.0,1.72896669]
[1746863637221,0.00722,103790.0,103780.0,0.6534864]
[1746863637416,0.00722,103790.0,103780.0,0.63265092]
[1746863637616,0.00722,103790.0,103780.0,0.83969474]
[1746863637816,0.00722,103790.0,103780.0,0.63265092]
[1746863638022,0.00722,103790.0,103780.0,0.7396886]
[1746863638323,0.00822,103790.0,103780.0,1.8322018]
[1746863638518,0.19606919,103790.0,103780.0,1.7100996]
[1746863638826,0.281749,103790.0,103780.0,1.1566132]
[1746863639026,0.344449,103790.0,103780.0,1.1279132]
[1746863639223,0.63010518,103790.0,103780.0,0.9295132]
[1746863639427,0.737149,103790.0,103780.0,0.9295132]
[1746863639723,0.97645719,103790.0,103780.0,0.80824127]
[1746863639918,1.08350101,103790.0,103780.0,0.80824127]
[1746863640330,1.08350101,103790.0,103780.0,0.80824127]
[1746863641015,1.08450101,103790.0,103780.0,0.80824127]
[1746863642123,0.97745719,103790.0,103780.0,0.14961265]
[1746863642328,1.08350101,103790.0,103780.0,0.14961265]
[1746863642527,1.08450101,103790.0,103780.0,0.15461265]
[1746863642931,0.97745719,103790.0,103780.0,0.15461265]
[1746863643231,1.08450101,103790.0,103780.0,0.15461265]
[1746863643529,0.83450101,103790.0,103780.0,0.15461265]
[1746863643729,0.72745719,103790.0,103780.0,0.15461265]
[1746863644224,0.83450101,103790.0,103780.0,0.15461265]
[1746863644827,0.72745719,103790.0,103780.0,0.15461265]
[1746863645223,0.83450101,103790.0,103780.0,0.15461265]
[1746863646017,0.72745719,103790.0,103780.0,0.15461265]
[1746863646222,0.83450101,103790.0,103780.0,0.15461265]
[1746863647725,0.72745719,103790.0,103780.0,0.15461265]
[1746863647918,0.83450101,103790.0,103780.0,0.15461265]
[1746863649128,1.08450101,103790.0,103780.0,0.15461265]
[1746863649334,0.1926864,103780.0,103770.0,0.19548353]
[1746863649627,0.83017404,103780.0,103770.0,0.19548353]
[1746863649835,0.92653804,103780.0,103770.0,0.19548353]
[1746863650524,1.17753804,103780.0,103770.0,0.20248353]
[1746863650721,0.98485164,103780.0,103730.0,0.74634836]
[1746863650922,0.29980452,103740.0,103730.0,0.54572766]
[1746863651125,0.1927607,103740.0,103730.0,0.86988998]
[1746863651325,0.2553607,103740.0,103730.0,0.67711068]
[1746863651521,0.36240452,103740.0,103730.0,0.67711068]
[1746863651727,0.72320452,103740.0,103730.0,0.67711068]
[1746863652434,0.6161607,103740.0,103730.0,0.67711068]
[1746863652732,0.72320452,103740.0,103730.0,0.67711068]
[1746863653028,0.72420452,103740.0,103730.0,0.68211068]
[1746863653233,0.6171607,103740.0,103730.0,0.68211068]
[1746863653419,0.6171607,103740.0,103730.0,0.71875729]
[1746863653930,0.5860607,103740.0,103730.0,1.01858041]
[1746863654135,0.2272607,103740.0,103730.0,1.05088041]
[1746863654435,0.2272607,103740.0,103730.0,0.94383659]
[1746863655433,0.2272607,103740.0,103730.0,0.95860527]
[1746863655835,0.1957607,103740.0,103730.0,0.95860527]
[1746863657331,0.1957607,103740.0,103730.0,1.06564909]
[1746863657531,0.1957607,103740.0,103730.0,0.95860527]
[1746863658231,0.66360452,103740.0,103730.0,0.67172597]
[1746863658433,0.72440452,103740.0,103730.0,0.56059497]
[1746863658635,0.2261607,103740.0,103730.0,1.27487374]
[1746863658841,0.5869607,103740.0,103730.0,0.75249444]
[1746863659041,0.1957607,103740.0,103730.0,0.95987137]
[1746863659333,0.1957607,103740.0,103730.0,1.32067137]
[1746863660224,0.003,103740.0,103730.0,1.42771519]
[1746863660426,0.1957607,103740.0,103730.0,1.44278226]
[1746863660637,0.1517868,103750.0,103730.0,2.28867132]
[1746863660840,0.3445289,103750.0,103740.0,0.6178607]
[1746863661139,0.2963395,103750.0,103740.0,0.7838607]
[1746863661934,0.2963395,103750.0,103740.0,0.88025553]
[1746863662128,0.00822,103750.0,103740.0,1.01136512]
[1746863662332,0.19614106,103750.0,103740.0,0.9043213]
[1746863662525,0.19614106,103750.0,103740.0,0.90432045]
[1746863662732,0.19614106,103750.0,103740.0,1.01136427]
[1746863663038,0.19514106,103750.0,103740.0,1.00236427]
[1746863663236,0.19714106,103750.0,103740.0,1.00836427]
[1746863663426,0.19714106,103750.0,103740.0,1.30187565]
[1746863663630,0.19714106,103750.0,103740.0,1.67640786]
[1746863664139,0.19714106,103750.0,103740.0,1.56936404]
[1746863664327,0.19714106,103750.0,103740.0,1.6764082]
[1746863664531,0.002,103750.0,103740.0,1.6764082]
[1746863664836,0.1947421,103750.0,103740.0,1.6764082]
[1746863665039,0.1947421,103750.0,103740.0,3.1764082]
[1746863665240,0.1947421,103750.0,103740.0,1.6764082]
[1746863665738,0.1947421,103750.0,103740.0,3.63217847]
[1746863665939,0.2891057,103760.0,103750.0,0.1927421]
[1746863666139,0.2891057,103760.0,103750.0,0.55868592]
[1746863666438,0.2891057,103760.0,103750.0,0.4516421]
[1746863666642,0.2891057,103760.0,103750.0,0.6550761]
[1746863667041,0.4394773,103770.0,103760.0,0.1927235]
[1746863667042,0.3195717,103770.0,103760.0,0.1927235]
[1746863667244,0.289052,103780.0,103770.0,0.192705]
[1746863667438,0.3702274,103780.0,103770.0,0.0972]
[1746863667834,0.3702274,103780.0,103770.0,0.19358089]
[1746863668141,0.7310274,103780.0,103770.0,0.35958089]
[1746863668939,0.2418766,103780.0,103770.0,1.02312971]
[1746863669146,0.2418766,103780.0,103770.0,0.93114722]
[1746863669339,0.001,103780.0,103770.0,1.14523486]
[1746863669544,0.001,103780.0,103770.0,1.86436481]
[1746863669838,0.1998878,103790.0,103780.0,0.1926864]
[1746863670041,0.1998878,103790.0,103780.0,0.6328474]
[1746863670243,0.1998878,103790.0,103780.0,0.90589122]
[1746863670443,0.1998878,103790.0,103780.0,1.00225354]
[1746863670639,0.1998878,103790.0,103780.0,1.62138423]
[1746863670842,0.1998878,103790.0,103780.0,1.6213831]
[1746863671146,0.1998878,103790.0,103780.0,1.51433928]
[1746863671345,0.1998878,103790.0,103780.0,1.32165288]
[1746863671531,0.79658363,103790.0,103780.0,0.78513069]
[1746863671738,0.72273981,103790.0,103780.0,0.78513069]
[1746863672039,0.83078363,103790.0,103780.0,0.78813069]
[1746863672238,0.6273878,103790.0,103780.0,0.62213069]
[1746863672535,0.6273878,103790.0,103780.0,0.78068372]
[1746863672741,0.73543162,103790.0,103780.0,0.78068372]
[1746863672942,0.2675878,103790.0,103780.0,0.78068372]
[1746863673342,0.2675878,103790.0,103780.0,1.14148372]
[1746863673642,0.73543162,103790.0,103780.0,0.78068372]
[1746863673832,0.6283878,103790.0,103780.0,0.78068372]
[1746863674038,0.73543162,103790.0,103780.0,0.78068372]
[1746863674238,0.6283878,103790.0,103780.0,0.78068372]
[1746863674446,0.73543162,103790.0,103780.0,0.78068372]
[1746863674743,0.4285,103790.0,103780.0,0.78068372]
[1746863675046,0.2271678,103790.0,103780.0,0.97337012]
[1746863675242,0.2271678,103790.0,103780.0,1.13937012]
[1746863676045,0.2271678,103790.0,103780.0,1.50017012]
[1746863676744,0.2271678,103790.0,103780.0,1.13937012]
[1746863677245,0.2271678,103790.0,103780.0,1.33417012]
[1746863677246,0.1946678,103790.0,103780.0,1.33417012]
[1746863677739,0.33371162,103790.0,103780.0,0.78068372]
[1746863677940,0.2588678,103790.0,103780.0,0.97337012]
[1746863678135,0.2588678,103790.0,103780.0,0.16155303]
[1746863678136,0.72671162,103790.0,103780.0,0.16155303]
[1746863678334,0.72671162,103790.0,103770.0,0.24459848]
[1746863678335,0.1926864,103780.0,103770.0,0.24459848]
[1746863678543,0.6491864,103780.0,103770.0,0.24459848]
[1746863679042,0.75623022,103780.0,103770.0,0.24459848]
[1746863679247,0.6491864,103780.0,103770.0,0.24459848]
[1746863679544,0.6491864,103780.0,103770.0,0.27739848]
[1746863679844,0.6501864,103780.0,103770.0,0.0328]
[1746863680346,0.6511864,103780.0,103770.0,0.0378]
[1746863680547,0.75823022,103780.0,103770.0,0.005]
[1746863680740,0.6511864,103780.0,103770.0,0.005]
[1746863681141,0.75823022,103780.0,103770.0,0.0378]
[1746863681341,0.75823022,103780.0,103770.0,0.005]
[1746863681539,0.6511864,103780.0,103770.0,0.005]
[1746863683345,0.6511864,103780.0,103770.0,0.28906732]
[1746863683544,0.6511864,103780.0,103770.0,0.35096732]
[1746863684547,0.6511864,103780.0,103770.0,0.35196732]
[1746863684749,0.6511864,103780.0,103770.0,0.15926232]
[1746863685046,0.6501864,103780.0,103770.0,0.35196732]
[1746863685354,0.6501864,103780.0,103770.0,0.51796732]
[1746863686641,0.001,103780.0,103770.0,0.89382975]
[1746863686848,0.1936864,103780.0,103770.0,0.92402975]
[1746863687052,0.1936864,103780.0,103770.0,1.03107357]
[1746863687353,0.1936864,103780.0,103770.0,0.92402975]
[1746863687552,0.2240864,103780.0,103770.0,1.03107357]
[1746863687847,0.2240864,103780.0,103770.0,0.92402975]
[1746863688253,0.2555864,103780.0,103770.0,1.42586204]
[1746863689357,0.2555864,103780.0,103770.0,1.59186204]
[1746863690153,0.1936864,103780.0,103770.0,1.69890586]
[1746863690354,0.2264864,103780.0,103770.0,1.69890586]
[1746863691442,0.2264864,103780.0,103770.0,1.59186204]
[1746863692556,0.6189864,103780.0,103770.0,1.00815704]
[1746863692752,0.6189864,103780.0,103770.0,0.71464566]
[1746863692959,0.72603022,103780.0,103770.0,0.55638334]
[1746863693254,0.6189864,103780.0,103770.0,0.39038334]
[1746863693553,0.72603022,103780.0,103770.0,0.39038334]
[1746863694060,0.72603022,103780.0,103770.0,0.01606243]
[1746863694246,0.6189864,103780.0,103770.0,0.01606243]
[1746863694445,0.6189864,103780.0,103770.0,0.20876743]
[1746863694651,0.6189864,103780.0,103770.0,0.33752975]
[1746863694859,0.6189864,103780.0,103770.0,0.36962975]
[1746863695061,0.6189864,103780.0,103770.0,0.17692475]
[1746863695262,0.6189864,103780.0,103770.0,0.34292475]
[1746863696546,0.6189864,103780.0,103770.0,0.63643613]
[1746863696955,0.6189864,103780.0,103770.0,0.82914113]
[1746863697161,0.6179864,103780.0,103770.0,0.82914113]
[1746863697746,0.6179864,103780.0,103770.0,0.63643613]
[1746863698253,0.72503022,103780.0,103770.0,0.79654963]
[1746863698661,0.72503022,103780.0,103770.0,0.76444963]
[1746863699047,0.6179864,103780.0,103770.0,0.63568731]
[1746863699255,0.72503022,103780.0,103770.0,0.63568731]
[1746863699460,0.72503022,103780.0,103770.0,0.62062488]
[1746863699855,0.6179864,103780.0,103770.0,0.62062488]
[1746863700048,0.72503022,103780.0,103770.0,0.62062488]
[1746863700455,0.72503022,103780.0,103770.0,0.001]
[1746863700663,0.6179864,103780.0,103770.0,0.001]
[1746863700959,0.72503022,103780.0,103770.0,0.001]
[1746863701552,0.72503022,103780.0,103770.0,0.01606393]
[1746863701752,0.6179864,103780.0,103770.0,0.02586302]
[1746863702161,0.6179864,103780.0,103770.0,0.01079909]
[1746863702356,0.72503022,103780.0,103770.0,0.01079909]
[1746863702549,0.72503022,103780.0,103760.0,0.08897726]
[1746863702550,0.192705,103770.0,103760.0,0.08897726]
[1746863702860,0.75724882,103770.0,103760.0,6e-08]
[1746863703057,0.85362082,103770.0,103760.0,6e-08]
[1746863703458,0.650205,103770.0,103760.0,6e-08]
[1746863703663,0.650205,103770.0,103760.0,0.06240006]
[1746863704466,0.650205,103770.0,103760.0,0.25512356]
[1746863704658,0.652205,103770.0,103760.0,0.07846523]
[1746863704962,0.291405,103770.0,103760.0,0.07846523]
[1746863705260,0.291405,103770.0,103760.0,0.43718867]
[1746863705556,0.291405,103770.0,103760.0,1.00140409]
[1746863705557,0.194705,103770.0,103760.0,1.00140409]
[1746863706156,0.003,103770.0,103760.0,1.10140409]
[1746863706467,0.001,103770.0,103760.0,0.89336027]
[1746863706658,0.194705,103770.0,103760.0,1.00140409]
[1746863706964,0.193705,103770.0,103760.0,0.89436027]
[1746863707159,0.200925,103770.0,103760.0,1.00240409]
[1746863707349,0.200925,103770.0,103760.0,2.12595944]
[1746863707762,0.00822,103770.0,103760.0,2.11528762]
[1746863708059,0.00822,103770.0,103760.0,2.46528762]
[1746863708253,0.00822,103770.0,103760.0,2.21528762]
[1746863708455,0.2890051,103790.0,103780.0,0.1926864]
[1746863708758,0.2890051,103790.0,103780.0,0.92934674]
[1746863708963,0.2890051,103790.0,103780.0,0.99364674]
[1746863709151,0.3217051,103790.0,103780.0,1.25601857]
[1746863709775,0.004,103800.0,103790.0,0.1926678]
[1746863709956,0.1966493,103800.0,103790.0,0.6632271]
[1746863710156,0.1966493,103800.0,103790.0,0.8292271]
[1746863710358,0.2289493,103800.0,103790.0,0.92557085]
[1746863710862,0.1966493,103800.0,103790.0,0.92557085]
[1746863711058,0.2056493,103800.0,103790.0,0.92657085]
[1746863712257,0.2056493,103800.0,103790.0,1.30094343]
[1746863712457,0.2016493,103800.0,103790.0,1.29994343]
[1746863712659,0.2056493,103800.0,103790.0,1.30094343]
[1746863713067,0.009,103800.0,103790.0,1.29994343]
[1746863713360,0.01,103800.0,103790.0,1.31446509]
[1746863713561,0.005,103800.0,103790.0,1.42150891]
[1746863713766,0.00722,103810.0,103800.0,0.1926493]
[1746863713962,0.00722,103810.0,103800.0,0.6294086]
[1746863714165,0.00722,103810.0,103800.0,0.7954086]
[1746863714358,0.00722,103810.0,103800.0,0.89174307]
[1746863714665,0.1998507,103810.0,103800.0,0.90158562]
[1746863714869,0.1998507,103810.0,103800.0,0.89174307]
[1746863715072,0.1998507,103810.0,103800.0,1.19923886]
[1746863715073,0.30689452,103810.0,103800.0,1.19923886]
[1746863715260,0.2313507,103810.0,103800.0,1.00658956]
[1746863715460,0.2926507,103810.0,103800.0,1.00658956]
[1746863715661,0.39969452,103810.0,103800.0,0.99153026]
[1746863716063,0.39969452,103810.0,103800.0,0.99253026]
[1746863716362,0.76049452,103810.0,103800.0,0.84158829]
[1746863716666,0.76049452,103810.0,103800.0,0.84158877]
[1746863717165,0.6544507,103810.0,103800.0,0.84358877]
[1746863717362,0.76149452,103810.0,103800.0,0.17529298]
[1746863717566,0.6544507,103810.0,103800.0,0.17529298]
[1746863717755,0.6544507,103810.0,103800.0,0.16023447]
[1746863717960,0.76149452,103810.0,103800.0,0.16023447]
[1746863718166,0.76149452,103810.0,103800.0,0.09933447]
[1746863718367,0.96487434,103810.0,103800.0,0.003]
[1746863718668,0.7507867,103810.0,103800.0,0.003]
[1746863718869,0.96487434,103810.0,103800.0,0.003]
[1746863719568,0.85783052,103810.0,103800.0,0.003]
[1746863720165,0.1926678,103790.0,103780.0,0.49895632]
[1746863720355,0.5534678,103790.0,103780.0,0.51401719]
[1746863720555,0.6175678,103790.0,103780.0,0.61035166]
[1746863720963,0.2567678,103790.0,103780.0,0.61035166]
[1746863721168,0.2889879,103800.0,103790.0,0.1926678]
[1746863721371,0.3219879,103800.0,103790.0,0.66722773]
[1746863721670,0.3219879,103800.0,103790.0,0.30642773]
[1746863721864,0.3219879,103800.0,103790.0,0.32111699]
[1746863722059,0.3219879,103800.0,103790.0,0.58347002]
[1746863723063,0.3219879,103800.0,103790.0,0.58346946]
[1746863723265,0.3219879,103800.0,103790.0,0.58446946]
[1746863723464,0.42903172,103800.0,103790.0,0.58446946]
[1746863723661,0.42903172,103800.0,103790.0,0.58546946]
[1746863723662,0.43003172,103800.0,103790.0,0.58546946]
[1746863724063,0.46013172,103800.0,103790.0,0.39280166]
[1746863724364,0.3530879,103800.0,103790.0,0.41946946]
[1746863724565,0.3229879,103800.0,103790.0,0.41946946]
[1746863724779,0.3229879,103800.0,103790.0,0.78026946]
[1746863724966,0.2899879,103800.0,103790.0,0.78026946]
[1746863725165,0.2899879,103800.0,103790.0,0.94626946]
[1746863725366,0.001,103800.0,103790.0,1.05331328]
[1746863725870,0.001,103800.0,103790.0,1.29261346]
[1746863726066,0.001,103800.0,103790.0,1.27755406]
[1746863726374,0.00722,103810.0,103800.0,0.1926493]
[1746863726670,0.00722,103810.0,103800.0,0.94819397]
[1746863726871,0.00722,103810.0,103800.0,1.18748615]
[1746863727177,0.1966047,103830.0,103820.0,0.1926122]
[1746863727377,0.1966047,103830.0,103820.0,0.56846923]
[1746863727676,0.1966047,103830.0,103820.0,0.63406923]
[1746863728066,0.1966047,103830.0,103820.0,0.83744752]
[1746863728375,0.1976047,103830.0,103820.0,1.00444752]
[1746863728879,0.1976047,103830.0,103820.0,0.8974037]
[1746863729176,0.1976047,103830.0,103820.0,1.09277346]
[1746863729577,0.1976047,103830.0,103820.0,1.09377346]
[1746863729876,0.1976047,103830.0,103820.0,1.09377001]
[1746863730675,0.1975936,103830.0,103820.0,1.45457001]
[1746863731276,0.1975936,103830.0,103820.0,1.45757001]
[1746863731878,0.1965936,103830.0,103820.0,1.46314018]
[1746863732079,0.1975936,103830.0,103820.0,1.46813928]
[1746863732579,0.1975936,103830.0,103820.0,1.56561268]
[1746863732781,0.1975936,103830.0,103820.0,1.45956886]
[1746863733482,0.1985936,103830.0,103820.0,1.46156886]
[1746863733672,0.1985936,103830.0,103820.0,1.56861268]
[1746863733869,0.006,103830.0,103820.0,1.81861268]
[1746863734079,0.0353,103860.0,103830.0,0.0481458]
[1746863734283,0.3075776,103860.0,103850.0,0.66040032]
[1746863734580,0.3075776,103860.0,103850.0,0.5533565]
[1746863734875,0.3075776,103860.0,103850.0,0.6173565]
[1746863735075,0.3075776,103860.0,103850.0,0.9089514]